fUSD/lending_fUSD_20240518
["ID","MTS","AMOUNT","RATE_DAILY","PERIOD"]
[327417256,1716054633269,-500.0,0.00030299,2]
[327417257,1716054633279,-500.0,0.00030299,2]
[327417258,1716054633288,-500.0,0.00030299,2]
[327417259,1716054633297,-500.0,0.00030299,2]
[327417260,1716054633307,-500.0,0.00030299,2]
[327417261,1716054633317,-564.95,0.00030299,2]
[327417262,1716054633326,-500.0,0.00030299,2]
[327417263,1716054633336,-518.87470965,0.00030299,2]
[327417264,1716054633347,-500.0,0.00030299,2]
[327417265,1716054633356,-500.0,0.00030299,2]
[327417266,1716054633367,-500.0,0.00030299,2]
[327417267,1716054633377,-500.0,0.00030299,2]
[327417268,1716054633386,-500.0,0.00030299,2]
[327417269,1716054633396,-500.0,0.00030299,2]
[327417270,1716054633405,-500.0,0.00030299,2]
[327417271,1716054633414,-500.0,0.00030299,2]
[327417272,1716054633423,-500.0,0.00030299,2]
[327417273,1716054633432,-500.0,0.00030299,2]
[327417274,1716054633452,-500.0,0.00030299,2]
[327417275,1716054633461,-500.0,0.00030299,2]
[327417276,1716054633470,-500.0,0.00030299,2]
[327417277,1716054633479,-500.0,0.00030299,2]
[327417278,1716054633490,-361.34189953,0.00030299,2]
[327417279,1716054633692,-500.0,0.00030299,2]
[327417280,1716054633703,-500.0,0.00030299,2]
[327417281,1716054633714,-150.0,0.00030299,2]
[327417282,1716054633723,-500.0,0.00030299,2]
[327417283,1716054633732,-500.0,0.00030299,2]
[327417284,1716054633742,-500.0,0.00030299,2]
[327417285,1716054633751,-500.0,0.00030299,2]
[327417286,1716054633760,-500.0,0.00030299,2]
[327417287,1716054633769,-2436.85,0.00030299,2]
[327417288,1716054633779,-500.0,0.00030299,2]
[327417289,1716054633788,-535.62,0.00030299,2]
[327417290,1716054633797,-500.0,0.00030299,2]
[327417291,1716054633806,-500.0,0.00030299,2]
[327417292,1716054633816,-500.0,0.00030299,2]
[327417293,1716054633825,-500.0,0.00030299,2]
[327417294,1716054633834,-500.0,0.00030299,2]
[327417295,1716054633843,-500.0,0.00030299,2]
[327417296,1716054633852,-500.0,0.00030299,2]
[327417297,1716054633862,-500.0,0.00030299,2]
[327417298,1716054633875,-500.0,0.00030299,2]
[327417299,1716054633884,-500.0,0.00030299,2]
[327417300,1716054633893,-500.0,0.00030299,2]
[327417301,1716054633903,-459.98,0.00030299,2]
[327417302,1716054633913,-500.0,0.00030299,2]
[327417303,1716054633923,-14568.84,0.00030299,2]
[327417304,1716054633933,-500.0,0.00030299,2]
[327417305,1716054633944,-1554.35,0.00030299,2]
[327417306,1716054633957,-500.0,0.00030299,2]
[327417307,1716054633967,-500.0,0.00030299,2]
[327417308,1716054633976,-500.0,0.00030299,2]
[327417309,1716054633986,-500.0,0.00030299,2]
[327417310,1716054633995,-500.0,0.00030299,2]
[327417311,1716054634004,-500.0,0.00030299,2]
[327417312,1716054634013,-500.0,0.00030299,2]
[327417313,1716054634023,-582.53,0.00030299,2]
[327417314,1716054634032,-500.0,0.00030299,2]
[327417315,1716054634041,-500.0,0.00030299,2]
[327417316,1716054634051,-500.0,0.00030299,2]
[327417317,1716054634060,-500.0,0.00030299,2]
[327417318,1716054634069,-500.0,0.00030299,2]
[327417319,1716054634079,-500.0,0.00030299,2]
[327417320,1716054634088,-500.0,0.00030299,2]
[327417321,1716054634096,-500.0,0.00030299,2]
[327417322,1716054634106,-615.98,0.00030299,2]
[327417323,1716054634116,-500.0,0.00030299,2]
[327417324,1716054634125,-500.0,0.00030299,2]
[327417325,1716054634134,-500.0,0.00030299,2]
[327417326,1716054634143,-537.18384349,0.00030299,2]
[327417327,1716054634153,-500.0,0.00030299,2]
[327417328,1716054634162,-500.0,0.00030299,2]
[327417329,1716054634171,-500.0,0.00030299,2]
[327417330,1716054634181,-416.92,0.00030299,2]
[327417331,1716054634190,-500.0,0.00030299,2]
[327417332,1716054634199,-4995.59,0.00030299,2]
[327417333,1716054634208,-509.33280548,0.00030299,2]
[327417334,1716054634217,-500.0,0.00030299,2]
[327417335,1716054634227,-1611.64,0.00030299,2]
[327417336,1716054634238,-500.0,0.00030299,2]
[327417337,1716054634247,-500.0,0.00030299,2]
[327417338,1716054634258,-500.0,0.00030299,2]
[327417339,1716054634267,-500.0,0.00030299,2]
[327417340,1716054634277,-500.0,0.00030299,2]
[327417341,1716054634289,-928.11,0.00030299,2]
[327417342,1716054634299,-500.0,0.00030299,2]
[327417343,1716054634308,-500.0,0.00030299,2]
[327417344,1716054634318,-500.0,0.00030299,2]
[327417345,1716054634327,-458.24,0.00030299,2]
[327417346,1716054634337,-500.0,0.00030299,2]
[327417347,1716054634347,-386.94,0.00030299,2]
[327417348,1716054634357,-500.0,0.00030299,2]
[327417349,1716054634366,-500.0,0.00030299,2]
[327417350,1716054634376,-500.0,0.00030299,2]
[327417351,1716054634386,-500.0,0.00030299,2]
[327417352,1716054634396,-500.0,0.00030299,2]
[327417353,1716054634406,-500.0,0.00030299,2]
[327417354,1716054634415,-500.0,0.00030299,2]
[327417355,1716054634425,-500.0,0.00030299,2]
[327417356,1716054634435,-500.0,0.00030299,2]
[327417357,1716054634444,-500.0,0.00030299,2]
[327417358,1716054634454,-500.0,0.00030299,2]
[327417359,1716054634463,-500.0,0.00030299,2]
[327417360,1716054634472,-1307.09,0.00030299,2]
[327417361,1716054634482,-500.0,0.00030299,2]
[327417362,1716054634492,-572.75,0.00030299,2]
[327417363,1716054634501,-500.0,0.00030299,2]
[327417364,1716054634510,-761.2,0.00030299,2]
[327417365,1716054634520,-500.0,0.00030299,2]
[327417366,1716054634530,-500.0,0.00030299,2]
[327417367,1716054634539,-500.0,0.00030299,2]
[327417368,1716054634549,-500.0,0.00030299,2]
[327417369,1716054634559,-541.07183667,0.00030299,2]
[327417370,1716054634568,-500.0,0.00030299,2]
[327417371,1716054634578,-500.0,0.00030299,2]
[327417372,1716054634588,-500.0,0.00030299,2]
[327417373,1716054634599,-500.0,0.00030299,2]
[327417374,1716054634608,-1363.76,0.00030299,2]
[327417375,1716054634620,-500.0,0.00030299,2]
[327417376,1716054634630,-512.1,0.00030299,2]
[327417377,1716054634640,-500.0,0.00030299,2]
[327417378,1716054634650,-523.89,0.00030299,2]
[327417379,1716054634659,-500.0,0.00030299,2]
[327417380,1716054634669,-500.0,0.00030299,2]
[327417381,1716054634679,-500.0,0.00030299,2]
[327417382,1716054634688,-500.0,0.00030299,2]
[327417383,1716054634699,-500.0,0.00030299,2]
[327417384,1716054634708,-500.0,0.00030299,2]
[327417385,1716054634718,-667.73,0.00030299,2]
[327417386,1716054634728,-500.0,0.00030299,2]
[327417387,1716054634738,-500.0,0.00030299,2]
[327417388,1716054634748,-2971.41,0.00030299,2]
[327417389,1716054634757,-500.0,0.00030299,2]
[327417390,1716054634767,-500.0,0.00030299,2]
[327417391,1716054634777,-500.0,0.00030299,2]
[327417392,1716054634786,-500.0,0.00030299,2]
[327417393,1716054634797,-1051.29,0.00030299,2]
[327417394,1716054634807,-500.0,0.00030299,2]
[327417395,1716054634817,-500.0,0.00030299,2]
[327417396,1716054634826,-500.0,0.00030299,2]
[327417397,1716054634836,-500.0,0.00030299,2]
[327417398,1716054634846,-517.17445328,0.00030299,2]
[327417399,1716054634856,-500.0,0.00030299,2]
[327417400,1716054634868,-500.0,0.00030299,2]
[327417401,1716054634880,-500.0,0.00030299,2]
[327417402,1716054634890,-500.0,0.00030299,2]
[327417403,1716054634900,-500.0,0.00030299,2]
[327417404,1716054634912,-500.0,0.00030299,2]
[327417405,1716054634922,-500.0,0.00030299,2]
[327417406,1716054634932,-500.0,0.00030299,2]
[327417407,1716054634943,-500.0,0.00030299,2]
[327417408,1716054634952,-500.0,0.00030299,2]
[327417409,1716054634962,-500.0,0.00030299,2]
[327417410,1716054634973,-500.0,0.00030299,2]
[327417411,1716054634985,-500.0,0.00030299,2]
[327417412,1716054634995,-500.0,0.00030299,2]
[327417413,1716054635005,-1165.89,0.00030299,2]
[327417414,1716054635014,-500.0,0.00030299,2]
[327417415,1716054635023,-500.0,0.00030299,2]
[327417416,1716054635033,-500.0,0.00030299,2]
[327417417,1716054635043,-1309.4,0.00030299,2]
[327417418,1716054635052,-500.0,0.00030299,2]
[327417419,1716054635061,-514.72,0.00030299,2]
[327417420,1716054635071,-528.09743173,0.00030299,2]
[327417421,1716054635080,-500.0,0.00030299,2]
[327417422,1716054635089,-500.0,0.00030299,2]
[327417423,1716054635099,-500.0,0.00030299,2]
[327417424,1716054635108,-500.0,0.00030299,2]
[327417425,1716054635118,-409405.06668034,0.000303,7]
[327417426,1716054635128,-32446.28032065,0.000303,7]
[327417427,1716054635137,-500.0,0.00030302,2]
[327417428,1716054635147,-500.0,0.00030302,2]
[327417429,1716054635157,-549.14,0.00030302,2]
[327417430,1716054635167,-151.0,0.00030302,7]
[327417431,1716054635176,-151.0,0.00030302,7]
[327417432,1716054635186,-151.0,0.00030302,7]
[327417433,1716054635196,-151.0,0.00030302,7]
[327417434,1716054635206,-151.0,0.00030302,7]
[327417435,1716054635215,-151.0,0.00030302,7]
[327417436,1716054635225,-155.0,0.00030302,7]
[327417437,1716054635235,-151.0,0.00030302,7]
[327417438,1716054635244,-151.0,0.00030303,7]
[327417439,1716054635254,-151.0,0.00030303,7]
[327417440,1716054635264,-241.783707,0.00030303,7]
[327417441,1716054635273,-151.0,0.00030303,7]
[327417442,1716054635282,-151.0,0.00030303,7]
[327417443,1716054635292,-151.0,0.00030303,7]
[327417444,1716054635301,-151.0,0.00030303,7]
[327417445,1716054635311,-151.0,0.00030303,7]
[327417446,1716054635320,-151.0,0.00030303,7]
[327417447,1716054635330,-151.0,0.00030303,7]
[327417448,1716054635339,-151.0,0.00030303,7]
[327417449,1716054635348,-151.0,0.00030303,7]
[327417450,1716054635358,-151.0,0.00030303,7]
[327417451,1716054635367,-151.0,0.00030303,7]
[327417452,1716054635377,-151.0,0.00030303,7]
[327417453,1716054635388,-151.0,0.00030303,7]
[327417454,1716054635398,-265.953467,0.00030303,7]
[327417455,1716054635408,-151.0,0.00030303,7]
[327417456,1716054635417,-151.0,0.00030303,7]
[327417457,1716054635426,-151.0,0.00030303,7]
[327417458,1716054635435,-151.0,0.00030303,7]
[327417459,1716054635445,-151.0,0.00030303,7]
[327417460,1716054635454,-151.0,0.00030303,7]
[327417461,1716054635464,-151.0,0.00030303,7]
[327417462,1716054635473,-129983.76054105,0.00030303,2]
[327417463,1716054635492,-594.56767789,0.00030303,2]
[327417473,1716054637917,-325.7675,0.00030298,2]
[327417474,1716054638057,-174.2325,0.00030298,2]
[327417475,1716054638066,-518.29,0.00030299,2]
[327417476,1716054638076,-500.0,0.00030299,2]
[327417477,1716054638086,-7222.65682816,0.000303,15]
[327417478,1716054638097,-13003.8,0.000303,15]
[327417479,1716054638496,-1138.18072319,0.000303,15]
[327417480,1716054638596,-561.26081123,0.000303,15]
[327417481,1716054638607,-11742.36006912,0.000303,15]
[327417486,1716054640053,-500.0,0.00029999,2]
[327417487,1716054640062,-260.01039041,0.00030273,2]
[327417488,1716054640075,-239.98960959,0.00030273,2]
[327417489,1716054640084,-498.71243587,0.00030299,2]
[327417490,1716054640133,-66.85756413,0.00030299,2]
[327417491,1716054640142,-500.0,0.00030299,2]
[327417492,1716054640152,-5943.64243587,0.000303,15]
[327417493,1716054640217,-1622200.0000047,0.000303,15]
[327417494,1716054640297,-388.71339461,0.000303,15]
[327417502,1716054640555,-256.71000019,0.000303,15]
[327417505,1716054640567,-312.3160075,0.000303,15]
[327417507,1716054640579,-9265.45803534,0.000303,15]
[327417531,1716054642997,-513.31,0.00030298,2]
[327417532,1716054643007,-500.0,0.00030299,2]
[327417533,1716054643016,-23178.47903486,0.000303,15]
[327417534,1716054643027,-975.975,0.000303,15]
[327417535,1716054643062,-28436.24903381,0.000303,15]
[327417536,1716054643073,-25982.9,0.000303,15]
[327417537,1716054643084,-10841.25426504,0.000303,15]
[327417538,1716054643095,-720.17616895,0.000303,15]
[327417539,1716054643127,-6506.5,0.000303,15]
[327417540,1716054643194,-500.0,0.00029999,2]
[327417541,1716054643203,-5975.36316329,0.000303,15]
[327417542,1716054643214,-12780.30967209,0.000303,15]
[327417543,1716054643225,-159403.00228882,0.000303,15]
[327417544,1716054643234,-151.0,0.00030302,7]
[327417545,1716054643245,-151.0,0.00030303,7]
[327417546,1716054643254,-459319.05172888,0.00030303,2]
[327417547,1716054643266,-650.96828781,0.00030303,2]
[327417548,1716054643277,-254609.2984546,0.00030303,2]
[327417549,1716054643288,-41020.0,0.00030303,2]
[327417550,1716054643300,-1765.648,0.00030303,2]
[327417551,1716054645889,-500.0,0.00030273,2]
[327417552,1716054645898,-500.0,0.00030299,2]
[327417553,1716054645907,-500.0,0.00030299,2]
[327417554,1716054645916,-2164.60901476,0.00030303,2]
[327417555,1716054645928,-314.37304775,0.00030303,2]
[327417556,1716054645939,-854.47484915,0.00030303,2]
[327417557,1716054646015,-815.3020152,0.00030303,2]
[327417558,1716054646042,-5623.76480857,0.00030303,2]
[327417559,1716054646054,-69334.09161434,0.00030303,2]
[327417565,1716054848654,9420.3960888,0.0003,90]
[327417566,1716054930550,10000.0,0.0003,90]
[327417567,1716055153744,231.22,0.00028307,120]
[327417568,1716055236976,999.04,0.0003,90]
[327417569,1716055615815,534.10085754,0.00017259,2]
[327417593,1716055772163,164.46,0.00013973,2]
[327417602,1716055832218,-211.43454253,0.00018884,2]
[327417603,1716055832230,-157.93,0.00026428,2]
[327417604,1716055832242,-80.63545747,0.00027949,2]
[327417605,1716055832255,-79.36454253,0.00027949,2]
[327417606,1716055832263,-250.0,0.00027962,2]
[327417607,1716055832274,-250.0,0.00027986,2]
[327417608,1716055832284,-226.64,0.0002802,2]
[327417609,1716055832293,-2834.18,0.00028065,2]
[327417610,1716055832302,-163.99,0.00028218,2]
[327417611,1716055832315,-167.76,0.00028327,2]
[327417612,1716055832326,-499.99,0.00028346,2]
[327417613,1716055832335,-160.0,0.00028369,2]
[327417614,1716055832344,-160.0,0.0002838,2]
[327417615,1716055832353,-163.99,0.00028381,2]
[327417616,1716055832362,-160.0,0.00028392,2]
[327417617,1716055832372,-736.24,0.00028401,2]
[327417618,1716055832381,-160.0,0.00028404,2]
[327417619,1716055832390,-160.0,0.00028416,2]
[327417620,1716055832400,-160.0,0.00028428,2]
[327417621,1716055832409,-160.0,0.00028439,2]
[327417622,1716055832419,-160.0,0.00028451,2]
[327417623,1716055832428,-160.0,0.00028463,2]
[327417624,1716055832438,-160.0,0.00028475,2]
[327417625,1716055832447,-160.0,0.00028487,2]
[327417626,1716055832456,-160.0,0.00028498,2]
[327417627,1716055832465,-554.28156734,0.000285,5]
[327417628,1716055832476,-160.0,0.0002851,2]
[327417630,1716055832485,-163.99,0.00028544,2]
[327417632,1716055832495,-1219.08,0.00028592,2]
[327417634,1716055832505,-1863.6831813,0.000286,2]
[327417636,1716055832518,-623.3168187,0.000286,2]
[327417639,1716055832527,-163.99,0.00028708,2]
[327417641,1716055832537,-868.29,0.0002874,2]
[327417643,1716055832546,-163.99,0.00028871,2]
[327417645,1716055832555,-163.99,0.00029034,2]
[327417646,1716055832565,-163.77,0.00029169,2]
[327417648,1716055832575,-163.77,0.00029176,2]
[327417651,1716055832584,-163.77,0.00029184,2]
[327417653,1716055832593,-163.77,0.00029192,2]
[327417655,1716055832604,-163.99,0.00029198,2]
[327417657,1716055832613,-163.77,0.000292,2]
[327417659,1716055832622,-163.77,0.00029207,2]
[327417661,1716055832631,-163.77,0.00029215,2]
[327417663,1716055832641,-119.32910075,0.00029223,2]
[327417665,1716055832653,-44.44089925,0.00029223,2]
[327417667,1716055832663,-163.77,0.0002923,2]
[327417669,1716055832672,-34272.71437578,0.00029232,2]
[327417671,1716055832681,-163.77,0.00029238,2]
[327417673,1716055832690,-163.77,0.00029246,2]
[327417675,1716055832700,-163.77,0.00029253,2]
[327417677,1716055832709,-163.77,0.00029261,2]
[327417679,1716055832718,-163.77,0.00029269,2]
[327417681,1716055832727,-163.77,0.00029276,2]
[327417683,1716055832737,-163.77,0.00029284,2]
[327417685,1716055832746,-163.77,0.00029292,2]
[327417687,1716055832756,-163.77,0.00029299,2]
[327417689,1716055832765,-163.77,0.00029307,2]
[327417691,1716055832774,-523.82,0.00029313,2]
[327417693,1716055832783,-153.68,0.00029313,2]
[327417695,1716055832793,-199.58,0.00029313,2]
[327417697,1716055832802,-523.82,0.00029313,2]
[327417699,1716055832811,-345.64,0.00029313,2]
[327417701,1716055832820,-163.77,0.00029315,2]
[327417703,1716055832830,-163.99,0.00029361,2]
[327417705,1716055832839,-1301.849,0.00029386,2]
[327417707,1716055832848,-5754.0,0.00029386,2]
[327417708,1716055832858,-5915.0,0.00029386,2]
[327417709,1716055832868,-13642.22572497,0.00029386,2]
[327417710,1716055832880,-791.24822385,0.00029386,2]
[327417711,1716055832892,-621.77146932,0.00029386,2]
[327417712,1716055832905,-883.97785601,0.00029386,2]
[327417713,1716055832916,-450.25,0.00029386,2]
[327417714,1716055832932,-12947.6,0.00029386,2]
[327417715,1716055832943,-1478.55913574,0.00029386,2]
[327417716,1716055832960,-1677.415985,0.00029386,2]
[327417717,1716055832971,-5368.95160511,0.00029386,2]
[327417718,1716055832980,-289.0,0.00029386,2]
[327417719,1716055832990,-163.99,0.00029525,2]
[327417720,1716055832999,-163.99,0.00029688,2]
[327417721,1716055833008,-554.28156735,0.000298,5]
[327417722,1716055833017,-370.0328,0.000298,2]
[327417723,1716055833026,-215.67,0.00029899,2]
[327417724,1716055833035,-5900.0,0.00029899,10]
[327417725,1716055833044,-1934.7609,0.000299,2]
[327417726,1716055833053,-435.4275,0.000299,2]
[327417727,1716055833063,-100000.0,0.000299,2]
[327417728,1716055833073,-1000.0,0.000299,2]
[327417729,1716055833082,-1563.60941232,0.00029972,2]
[327417730,1716055833091,-500.0,0.00029999,2]
[327417731,1716055833100,-500.0,0.00029999,2]
[327417732,1716055833110,-500.0,0.00029999,2]
[327417733,1716055833119,-500.0,0.00029999,2]
[327417734,1716055833128,-500.0,0.00029999,2]
[327417735,1716055833138,-500.0,0.00029999,2]
[327417736,1716055833147,-500.0,0.00029999,2]
[327417737,1716055833156,-500.0,0.00029999,2]
[327417738,1716055833166,-500.0,0.00029999,2]
[327417739,1716055833175,-500.0,0.00029999,2]
[327417740,1716055833185,-500.0,0.00029999,2]
[327417741,1716055833195,-500.0,0.00029999,2]
[327417742,1716055833204,-500.0,0.00029999,2]
[327417743,1716055833214,-433.91912415,0.00029999,2]
[327417744,1716055833224,-500.0,0.00029999,2]
[327417745,1716055833236,-546.8647651,0.00029999,2]
[327417746,1716055833246,-397.86057764,0.00029999,2]
[327417747,1716055833255,-584.25,0.00029999,2]
[327417748,1716055833265,-157.93,0.00030012,2]
[327417749,1716055833275,-1000.0,0.000301,2]
[327417750,1716055833284,-1307.0262,0.00030198,2]
[327417751,1716055833293,-1000.0,0.00030199,2]
[327417752,1716055833303,-10000.0,0.00030199,2]
[327417753,1716055833316,-351.66,0.00030219,2]
[327417754,1716055833326,-159.92,0.00030261,2]
[327417755,1716055833335,-500.0,0.0003027,2]
[327417756,1716055833344,-500.0,0.0003027,2]
[327417757,1716055833354,-500.0,0.00030271,2]
[327417758,1716055833363,-500.0,0.00030271,2]
[327417759,1716055833372,-560.7,0.00030271,2]
[327417760,1716055833382,-500.0,0.00030271,2]
[327417761,1716055833392,-500.0,0.00030271,2]
[327417762,1716055833401,-500.0,0.00030271,2]
[327417763,1716055833410,-500.0,0.00030271,2]
[327417764,1716055833419,-2335.31,0.00030271,2]
[327417765,1716055833428,-500.0,0.00030271,2]
[327417766,1716055833438,-500.0,0.00030271,2]
[327417767,1716055833447,-13961.81,0.00030271,2]
[327417768,1716055833457,-500.0,0.00030271,2]
[327417769,1716055833467,-4808.28,0.00030271,2]
[327417770,1716055833476,-500.0,0.00030271,2]
[327417771,1716055833485,-611.15,0.00030271,2]
[327417772,1716055833495,-500.0,0.00030271,2]
[327417773,1716055833504,-500.0,0.00030271,2]
[327417774,1716055833514,-500.0,0.00030271,2]
[327417775,1716055833524,-500.0,0.00030271,2]
[327417776,1716055833533,-500.0,0.00030271,2]
[327417777,1716055833543,-500.0,0.00030271,2]
[327417778,1716055833552,-500.0,0.00030271,2]
[327417779,1716055833562,-500.0,0.00030271,2]
[327417780,1716055833571,-500.0,0.00030271,2]
[327417781,1716055833580,-500.0,0.00030271,2]
[327417782,1716055833589,-1252.62,0.00030271,2]
[327417783,1716055833599,-500.0,0.00030271,2]
[327417784,1716055833608,-561.56,0.00030271,2]
[327417785,1716055833617,-500.0,0.00030271,2]
[327417786,1716055833627,-729.49,0.00030271,2]
[327417787,1716055833637,-500.0,0.00030271,2]
[327417788,1716055833646,-583.84,0.00030271,2]
[327417789,1716055833655,-500.0,0.00030271,2]
[327417790,1716055833664,-500.0,0.00030271,2]
[327417791,1716055833673,-500.0,0.00030271,2]
[327417792,1716055833683,-500.0,0.00030271,2]
[327417793,1716055833692,-500.0,0.00030271,2]
[327417794,1716055833701,-607.85,0.00030271,2]
[327417795,1716055833710,-500.0,0.00030271,2]
[327417796,1716055833720,-1555.24,0.00030271,2]
[327417797,1716055833728,-609.19,0.00030271,2]
[327417798,1716055833737,-500.76,0.00030271,2]
[327417799,1716055833747,-500.0,0.00030271,2]
[327417800,1716055833756,-620.54,0.00030271,2]
[327417801,1716055833765,-500.0,0.00030271,2]
[327417802,1716055833774,-500.0,0.00030271,2]
[327417803,1716055833782,-500.0,0.00030271,2]
[327417804,1716055833791,-500.0,0.00030271,2]
[327417805,1716055833800,-500.0,0.00030271,2]
[327417806,1716055833810,-639.93,0.00030271,2]
[327417807,1716055833820,-651.16,0.00030271,2]
[327417808,1716055833829,-1007.49,0.00030271,2]
[327417809,1716055833838,-2500.31,0.00030271,2]
[327417810,1716055833847,-3220.35,0.00030271,2]
[327417811,1716055833856,-500.0,0.00030271,2]
[327417812,1716055833865,-704.02,0.00030271,2]
[327417813,1716055833874,-500.0,0.00030271,2]
[327417814,1716055833884,-500.0,0.00030271,2]
[327417815,1716055833893,-500.0,0.00030271,2]
[327417816,1716055833902,-500.0,0.00030271,2]
[327417817,1716055833911,-4531.08,0.00030271,2]
[327417818,1716055833920,-598.9,0.00030271,2]
[327417819,1716055833929,-500.0,0.00030271,2]
[327417820,1716055833938,-500.0,0.00030271,2]
[327417821,1716055833948,-500.0,0.00030271,2]
[327417822,1716055833957,-500.0,0.00030271,2]
[327417823,1716055833967,-500.0,0.00030271,2]
[327417824,1716055833978,-500.0,0.00030271,2]
[327417825,1716055833987,-500.0,0.00030271,2]
[327417826,1716055833996,-1420.54,0.00030271,2]
[327417827,1716055834005,-362.28,0.00030271,2]
[327417828,1716055834014,-500.0,0.00030271,2]
[327417829,1716055834023,-500.0,0.00030272,2]
[327417830,1716055834033,-500.0,0.00030272,2]
[327417831,1716055834044,-500.0,0.00030272,2]
[327417832,1716055834055,-500.0,0.00030272,2]
[327417833,1716055834066,-500.0,0.00030272,2]
[327417834,1716055834075,-500.0,0.00030272,2]
[327417835,1716055834085,-500.0,0.00030272,2]
[327417836,1716055834094,-500.0,0.00030272,2]
[327417837,1716055834103,-500.0,0.00030272,2]
[327417838,1716055834111,-500.0,0.00030272,2]
[327417839,1716055834120,-500.0,0.00030272,2]
[327417840,1716055834130,-500.0,0.00030272,2]
[327417841,1716055834140,-500.0,0.00030272,2]
[327417842,1716055834150,-618.30720587,0.00030272,2]
[327417843,1716055834159,-500.0,0.00030272,2]
[327417844,1716055834168,-500.0,0.00030272,2]
[327417845,1716055834177,-500.0,0.00030272,2]
[327417846,1716055834186,-500.0,0.00030272,2]
[327417847,1716055834195,-152.28318798,0.00030272,2]
[327417848,1716055834204,-234.28929534,0.00030272,2]
[327417849,1716055834213,-500.0,0.00030272,2]
[327417850,1716055834222,-500.0,0.00030272,2]
[327417851,1716055834234,-500.0,0.00030272,2]
[327417852,1716055834243,-500.0,0.00030272,2]
[327417853,1716055834252,-500.0,0.00030272,2]
[327417854,1716055834261,-500.0,0.00030272,2]
[327417855,1716055834271,-500.0,0.00030272,2]
[327417856,1716055834280,-500.0,0.00030272,2]
[327417857,1716055834289,-500.0,0.00030272,2]
[327417858,1716055834298,-500.0,0.00030272,2]
[327417859,1716055834307,-500.0,0.00030272,2]
[327417860,1716055834319,-500.0,0.00030272,2]
[327417861,1716055834329,-500.0,0.00030272,2]
[327417862,1716055834341,-500.0,0.00030272,2]
[327417863,1716055834350,-500.0,0.00030272,2]
[327417864,1716055834360,-355.66743287,0.00030272,2]
[327417865,1716055834369,-500.0,0.00030272,2]
[327417866,1716055834380,-500.0,0.00030272,2]
[327417867,1716055834389,-500.0,0.00030272,2]
[327417868,1716055834401,-500.0,0.00030272,2]
[327417869,1716055834412,-500.0,0.00030272,2]
[327417870,1716055834421,-500.0,0.00030272,2]
[327417871,1716055834432,-500.0,0.00030272,2]
[327417872,1716055834441,-500.0,0.00030272,2]
[327417873,1716055834450,-500.0,0.00030272,2]
[327417874,1716055834460,-500.0,0.00030272,2]
[327417875,1716055834469,-500.0,0.00030272,2]
[327417876,1716055834479,-537.02897,0.00030272,2]
[327417877,1716055834488,-500.0,0.00030272,2]